[Event "Super United Croatia GCT Blitz 2022"]
[Site "Zagreb"]
[Date "2022.07.24"]
[Round "10"]
[White "Van Foreest, Jorden"]
[Black "Carlsen, Magnus"]
[Result "0-1"]
[ECO "C53"]
[WhiteElo "2678"]
[BlackElo "2864"]
[Annotator "TA"]
[PlyCount "64"]
[EventDate "2022.07.20"]
[EventType "tourn"]
[EventCountry "CRO"]
[SourceTitle "playchess.com"]
[Source "ChessBase"]
[SourceQuality "1"]
[TimeControl "300+2"]

{[%evp 11,64,51,88,-22,-18,-13,-20,-4,-11,-3,-16,-13,0,-7,-4,-4,0,-48,-41,-44,-37,-63,-45,-44,-60,-72,-60,-133,-135,-134,-128,-168,-168,-165,-160,-190,-198,-194,-164,-225,-212,-203,-207,-206,-205,-272,-258,-347,-348,-418,-420,-421,-404,-477,-384]} 1. e4 {[%emt 0:00:01]} e5 {[%emt 0:00:02]} 2. Nf3 {[%emt 0:00:02]} Nc6 {[%emt 0:00:02]} 3. Bc4 {[%emt 0:00:01]} Bc5 {[%emt 0:00:02]} 4. c3 {[%emt 0:00:02]} Bb6 {[%emt 0:00:04]} 5. d4 {[%emt 0:00:01]} Qe7 {[%emt 0:00:01]} 6. d5 {[%emt 0:00:28]} Nd8 {[%emt 0:00:13]} 7. d6 {[%emt 0:00:28] C53: Giuoco Piano sidelines.} (7. O-O $16) 7... Qxd6 $11 {[%emt 0:00:05]} 8. Qxd6 {[%emt 0:00:03]} cxd6 {[%emt 0:00:02]} 9. O-O {[%emt 0:00:17] The position is equal.} Nf6 {[%emt 0:00:03]} 10. Re1 {[%emt 0:00:07]} Ne6 {[%emt 0:00:13]} 11. a4 {[%emt 0:00:06] [#]} Bc7 $146 {[%emt 0:00:29]} ({Predecessor:} 11... a6 12. Be3 Bxe3 13. Rxe3 b6 14. Nbd2 Bb7 15. Bd3 Ke7 16. Ree1 Bc6 17. b4 Nc7 {0-1 (36) Escalona Landi,S (2063)-Arias Serrano,L (2144) Valencia 2017}) 12. a5 {[%emt 0:00:06]} Rb8 {[%emt 0:00:04]} 13. Na3 {[%emt 0:00:20]} a6 {[%emt 0:00:04][%cal Ba7a6,Ba6a5][%mdl 32] Prevents Nb5.} 14. Nc2 {[%emt 0:00:02]} (14. b4 $1 $11 {is more appropriate.}) 14... b5 {[%emt 0:00:09]} 15. axb6 {[%emt 0:00:07]} Bxb6 {[%emt 0:00:01]} 16. Nb4 {[%emt 0:00:57]} (16. Bxa6 Bxa6 17. Rxa6 Nc5 $17) 16... Bb7 {[%emt 0:00:07]} 17. Nd2 {[%emt 0:00:20]} a5 {[%emt 0:00:49]} 18. Nd5 {[%emt 0:00:07]} Bxd5 {[%emt 0:00:03]} 19. Bxd5 {[%emt 0:00:02]} (19. exd5 $15 Nf4 20. Ne4 Nxe4 21. Rxe4) 19... Nxd5 $17 {[%emt 0:00:03]} 20. exd5 {[%emt 0:00:01]} Nf4 {[%emt 0:00:02]} 21. Nc4 {[%emt 0:00:05] [#] Hoping for Bxf4.} Nd3 {[%emt 0:00:01]} ({Inferior is} 21... Nxd5 22. Rd1 Nf6 23. Nxd6+ Ke7 24. Nf5+ Ke6 25. Nxg7+ Ke7 26. Kf1 $11) 22. Re2 {[%emt 0:00:13]} Ke7 {[%emt 0:00:17]} 23. Be3 {[%emt 0:00:42]} Bxe3 {[%emt 0:00:05]} 24. Nxe3 {[%emt 0:00:01]} g6 {[%emt 0:00:17] Prevents Nf5+.} ({Not} 24... Nxb2 25. Nf5+ Kf6 26. Nxd6 $17) 25. Rxa5 {[%emt 0:00:16]} (25. Nc4 $142) 25... Rxb2 {[%emt 0:00:08]} 26. Rxb2 {[%emt 0:00:01]} Nxb2 $19 {[%emt 0:00:01][%mdl 4096] Endgame KRN-KRN} 27. Kf1 {[%emt 0:00:17]} Rc8 {[%emt 0:00:02]} 28. Rb5 {[%emt 0:00:10]} Nc4 {[%emt 0:00:04]} 29. Nc2 {[%emt 0:00:11]} Nd2+ {[%emt 0:00:01]} 30. Ke2 {[%emt 0:00:05]} Ne4 {[%emt 0:00:02]} 31. Ra5 {[%emt 0:00:14]} Nxc3+ {[%emt 0:00:05]} 32. Kd3 {[%emt 0:00:01] [#]} Ne4 $1 {[%emt 0:00:03][%mdl 512] Weighted Error Value: White=0.31/Black=0.04 (flawless)} 0-1

[Event "Super United Croatia GCT Blitz 2022"]
[Site "Zagreb"]
[Date "2022.07.24"]
[Round "11"]
[White "Carlsen, Magnus"]
[Black "Topalov, Veselin"]
[Result "1/2-1/2"]
[ECO "B23"]
[WhiteElo "2864"]
[BlackElo "2728"]
[Annotator "TA"]
[PlyCount "118"]
[EventDate "2022.07.20"]
[EventType "tourn"]
[EventCountry "CRO"]
[SourceTitle "playchess.com"]
[Source "ChessBase"]
[SourceQuality "1"]
[TimeControl "300+2"]

{[%evp 9,118,9,26,25,25,22,25,25,48,58,58,54,51,27,32,44,35,35,78,75,71,61,77,78,72,54,70,48,56,37,45,37,22,25,60,17,13,17,13,25,108,31,40,16,16,-151,-137,-116,-127,-233,-208,-231,-99,-123,-123,-124,0,0,0,-447,-443,-418,-406,-607,-360,-533,-522,-550,-77,-170,-56,-205,-199,-418,-571,-498,-426,-918,-567,-1599,-1842,-1401,-364,-315,0,0,0,0,0,0,0,0,0,0,0,0,0,0,0,0,0,0,0,0,0,0,0,0,0,0,0]} 1. e4 {[%emt 0:00:02]} c5 {[%emt 0:00:03]} 2. Nc3 {[%emt 0:00:03]} Nc6 {[%emt 0:00:01]} 3. Bb5 {[%emt 0:00:02]} Nd4 {[%emt 0:00:08]} 4. Nf3 {[%emt 0:00:01]} Nxb5 {[%emt 0:00:05]} 5. Nxb5 {[%emt 0:00:02]} a6 {[%emt 0:00:03]} 6. Nc3 {[%emt 0:00:02] B23: Closed Sicilian: Lines without g3.} d6 {[%emt 0:00:02]} 7. d4 {[%emt 0:00:08]} cxd4 {[%emt 0:00:02]} 8. Qxd4 {[%emt 0:00:05] White has an edge.} Nf6 {[%emt 0:00:27]} 9. Bg5 {[%emt 0:00:13]} e6 {[%emt 0:00:25]} 10. O-O-O {[%emt 0:02:19]} Be7 $1 {[%emt 0:00:01]} 11. Bxf6 {[%emt 0:00:46] [#]} Bxf6 $5 $146 {[%emt 0:00:03][%mdl 8] An interesting novelty.} ({Predecessor:} 11... gxf6 12. Nh4 Bd7 13. Rhe1 Rc8 14. f4 Rg8 15. f5 Qa5 16. g3 Kf8 17. Kb1 Kg7 {1-0 (35) Pridorozhni,A (2601)-Shariyazdanov,A (2519) Roquetas de Mar 2020}) 12. Qxd6 {[%emt 0:00:02]} Qxd6 {[%emt 0:00:11]} 13. Rxd6 {[%emt 0:00:01]} Be7 {[%emt 0:00:14]} 14. Rd3 {[%emt 0:00:03] 0x0.00204e1b4a52dp-1022s more active pieces. The black rooks are badly placed.} b5 {[%emt 0:00:04]} 15. Rhd1 {[%emt 0:00:10]} Bb7 {[%emt 0:00:18]} 16. a3 {[%emt 0:00:43]} Rd8 {[%emt 0:00:30]} 17. Rxd8+ {[%emt 0:00:12]} Bxd8 {[%emt 0:00:01]} 18. Nd4 {[%emt 0:00:18]} Bb6 {[%emt 0:00:21]} 19. f3 {[%emt 0:00:03]} g5 {[%emt 0:00:04]} 20. b4 {[%emt 0:00:07]} Ke7 {[%emt 0:00:02]} 21. h3 {[%emt 0:00:04]} Rc8 {[%emt 0:00:16]} 22. Kb2 {[%emt 0:00:01]} Rd8 {[%emt 0:00:03]} 23. Nb3 {[%emt 0:00:02]} Rxd1 24. Nxd1 $11 {[%emt 0:00:01][%mdl 4096] Endgame KBB-KNN} Kd6 {[%emt 0:00:08] Against Nc5} (24... f5 $11 {remains equal.}) 25. Kc3 {[%emt 0:00:08]} (25. c4 $1 $16 {[%cal Rc4c5] Hoping for c5+.} bxc4 26. Nd2) 25... h5 {[%emt 0:00:05]} 26. Nb2 {[%emt 0:00:04]} f5 {[%emt 0:00:07]} 27. Kd3 {[%emt 0:00:05]} ({White should try} 27. exf5 $11 exf5 28. Nd3) 27... fxe4+ $17 {[%emt 0:00:07]} 28. fxe4 {[%emt 0:00:01]} Ke5 {[%emt 0:00:01]} 29. Nd2 {[%emt 0:00:01]} (29. Ke2 $17 Bxe4 30. Nd3+ Kf5 31. Ne1) 29... Kf4 $1 $19 {[%emt 0:00:00]} 30. c4 {[%emt 0:00:01]} bxc4+ {[%emt 0:00:21]} (30... Kg3 $1 $19 31. Nf3 (31. c5 $2 Bd8 $19) 31... Bd8) 31. Nbxc4 $17 {[%emt 0:00:01]} Bc7 {[%emt 0:00:14]} 32. Ke2 {[%emt 0:00:01]} h4 {[%emt 0:00:07]} ({Better is} 32... Kg3 $1 $17 {[%cal Rg3g2]} 33. Ne3 Bc6 34. Ndf1+ Kf4 35. g3+ Kxe4 36. Nd2+ Kd4 37. Nb3+ (37. Nf3+ Bxf3+ 38. Kxf3 Kc3 $19) 37... Kc3) 33. Kf2 $11 {[%emt 0:00:04]} Bc6 {[%emt 0:00:08]} 34. Nb2 {[%emt 0:00:08][%mdl 8192] Prevents Ba4.} (34. Nb3 $1 $11 {and White is okay.}) 34... Bb6+ $1 $19 {[%emt 0:00:00]} 35. Kf1 {[%emt 0:00:01]} Bb5+ {[%emt 0:00:02]} 36. Nbc4 {[%emt 0:00:02]} (36. Ndc4 $142 Bd4 37. a4) 36... Be3 {[%emt 0:00:12]} 37. Ke1 {[%emt 0:00:01]} (37. a4 {was the only chance.} Bxa4 38. Nxe3 Kxe3 39. Nf3) 37... Bd4 {[%emt 0:00:13]} 38. Nd6 {[%emt 0:00:02] [#]} Bc6 $2 {[%emt 0:00:01]} (38... Bc3 $1 $19 {has better winning chances.} 39. Kd1 Bd3) 39. Nf3 {[%emt 0:00:02]} (39. Nb3 $17 Be5 40. Nc4) 39... Bc3+ {[%emt 0:00:02]} ({Black should play} 39... Bb2 $19 40. Ng1 Bc3+ 41. Kd1 Be5 42. Ne2+ Ke3 43. Nc4+ Kxe4) 40. Ke2 {[%emt 0:00:02] [#]} (40. Kf2 $15) 40... Bb2 $1 {[%emt 0:00:01]} 41. Nc4 {[%emt 0:00:06]} (41. Kd3) 41... Bb5 {[%emt 0:00:00]} 42. Kd3 {[%emt 0:00:00][%cal Oa3a4]} Bxa3 {[%emt 0:00:01]} 43. Kc3 {[%emt 0:00:01]} (43. Nd4 $142 Bxc4+ 44. Kxc4) 43... Bc1 {[%emt 0:00:08] This bishop pair is nice.} 44. Nd4 {[%emt 0:00:01] And now Ne2+ would win.} Bxc4 {[%emt 0:00:04]} 45. Kxc4 {[%emt 0:00:00]} Kxe4 {[%emt 0:00:04]} 46. Nxe6 {[%emt 0:00:01] KB-KN} Be3 $2 {[%emt 0:00:21]} (46... Ke5 $19 47. Nc5 Kf4 48. Nxa6 (48. Nd3+ $2 Kg3 $19) 48... Kg3) 47. Nc7 $11 {[%emt 0:00:02] The position is equal.} Kf4 {[%emt 0:00:10]} 48. Nd5+ {[%emt 0:00:01]} (48. Nxa6 Kg3 49. Kd3 Bc1 $19) 48... Ke4 {[%emt 0:00:01] ...Ba7 is the strong threat.} 49. Nc7 {[%emt 0:00:03]} Kf4 {[%emt 0:00:04]} 50. Kd3 {[%emt 0:00:01] Threatens to win with Nd5+.} (50. Nxa6 Kg3 51. Kd3 Bc1 $19) 50... Ba7 {[%emt 0:00:09] Strongly threatening ...Kg3.} 51. Ke2 {[%emt 0:00:02]} g4 {[%emt 0:00:02]} (51... Kg3 $5 52. Kf1 g4 $11) 52. hxg4 {[%emt 0:00:04]} Kxg4 {[%emt 0:00:01]} 53. Nxa6 {[%emt 0:00:01]} Kg3 {[%emt 0:00:01]} 54. Kf1 {[%emt 0:00:01]} h3 {[%emt 0:00:01]} 55. gxh3 {[%emt 0:00:01]} Kxh3 {[%emt 0:00:01]} 56. Ke2 {[%emt 0:00:01]} Kg4 {[%emt 0:00:01]} 57. Kd3 {[%emt 0:00:00]} Kf5 {[%emt 0:00:00]} 58. Kc4 {[%emt 0:00:04]} Ke6 {[%emt 0:00:02]} 59. Nc7+ {[%emt 0:00:03]} Kd7 {[%emt 0:00:01] Whites escaped into a draw.  Weighted Error Value: White=0.62/Black=0.40} 1/2-1/2

[Event "Super United Croatia GCT Blitz 2022"]
[Site "Zagreb"]
[Date "2022.07.24"]
[Round "11"]
[White "Firouzja, Alireza"]
[Black "So, Wesley"]
[Result "1-0"]
[ECO "E46"]
[WhiteElo "2793"]
[BlackElo "2773"]
[Annotator "TA"]
[PlyCount "71"]
[EventDate "2022.07.20"]
[EventType "tourn"]
[EventCountry "CRO"]
[SourceTitle "playchess.com"]
[Source "ChessBase"]
[SourceQuality "1"]
[TimeControl "300+2"]

{[%evp 11,71,0,0,0,0,2,-12,-12,-11,-9,0,0,0,0,7,6,13,-1,51,47,114,96,234,193,228,211,231,219,198,212,227,207,208,187,240,222,226,238,247,168,355,118,173,143,172,79,95,93,218,220,202,200,362,362,358,356,768,774,812,554,495,478]} 1. d4 {[%emt 0:00:02]} Nf6 {[%emt 0:00:02]} 2. c4 e6 {[%emt 0:00:00]} 3. Nc3 {[%emt 0:00:01]} Bb4 {[%emt 0:00:03]} 4. e3 {[%emt 0:00:01]} O-O {[%emt 0:00:02]} 5. Bd2 {[%emt 0:00:01]} d5 {[%emt 0:00:02]} 6. a3 {[%emt 0:00:01]} Be7 {[%emt 0:00:06]} 7. Nf3 {[%emt 0:00:01] E46: Nimzo-Indian: Rubinstein: 4 e3 0-0 5 Ne2 without early Bd3.} b6 {[%emt 0:00:07]} 8. cxd5 {[%emt 0:00:06]} exd5 {[%emt 0:00:01]} 9. Bd3 {[%emt 0:00:03] The position is equal.} c5 {[%emt 0:00:07]} 10. Rc1 {[%emt 0:00:13]} Bb7 {[%emt 0:00:11]} 11. O-O {[%emt 0:00:05]} Nc6 {[%emt 0:00:13] [#]} 12. dxc5 $146 {[%emt 0:00:19]} ({Predecessor:} 12. Ne5 cxd4 13. Nxc6 Bxc6 14. exd4 Bb7 15. Re1 a6 16. Qf3 h6 17. Bf4 Bd6 18. Be5 {0-1 (25) Nagy,G (2503)-Xu,Y (2507) Chess.com INT 2022}) 12... bxc5 {[%emt 0:00:01]} 13. Ne2 {[%emt 0:00:18]} Ne4 {[%emt 0:00:15]} 14. Qc2 {[%emt 0:00:13]} Rb8 {[%emt 0:00:19]} ({Black should play} 14... Nxd2 $11 15. Bxh7+ Kh8 16. Nxd2 g6 17. Bxg6 fxg6) 15. Rfd1 $14 {[%emt 0:00:07][%cal Bf1d1,Bd1d2,Bd2d5][%mdl 32]} (15. Bxe4 dxe4 16. Ne1 (16. Qxe4 $2 Nd4 $19) 16... Ba6 $17) 15... Qb6 {[%emt 0:00:35]} (15... Bd6 $14) 16. Nf4 {[%emt 0:00:05]} Nxd2 {[%emt 0:00:48]} (16... Na5 $16) 17. Rxd2 $18 {[%emt 0:00:12]} (17. Nxd2 Ne5 $11) 17... Na5 {[%emt 0:00:01]} 18. Bxh7+ {[%emt 0:00:25]} Kh8 {[%emt 0:00:00][%cal Od5d4]} 19. Nxd5 {[%emt 0:00:02]} Bxd5 {[%emt 0:00:02]} 20. Rxd5 {[%emt 0:00:01] Black must now prevent Rh5.} g6 {[%emt 0:00:16] [#] Against Rh5} 21. Bxg6 {[%emt 0:00:08][%mdl 512]} fxg6 {[%emt 0:00:04]} 22. Ne5 {[%emt 0:00:05]} Qxb2 {[%emt 0:00:10]} (22... Rf6 $142) 23. Nxg6+ {[%emt 0:00:42]} Kg7 {[%emt 0:00:01] Hoping for ...Qxc2.} 24. Qxb2+ {[%emt 0:00:11]} Rxb2 {[%emt 0:00:01]} 25. Nxe7 {[%emt 0:00:41]} Rfxf2 {[%emt 0:00:37]} (25... Nb3 {was necessary.}) 26. Nf5+ $2 {[%emt 0:00:06]} (26. Rdxc5 $2 Rxg2+ 27. Kf1 (27. Kh1 $2 Rxh2+ 28. Kg1 Rbg2+ 29. Kf1 Nb3 $19) 27... Rxh2 $1 28. Nf5+ Kg6 29. Nh4+ Rxh4 $19) (26. Rg5+ $18 {and the rest is easy.} Kf7 27. Rcxc5) 26... Kf6 {[%emt 0:00:22] [#]} (26... Kf7 $16 27. Nh4 (27. Rdxc5 $2 Rxg2+ 28. Kf1 Nb3 $19) 27... Nb3) 27. Nh4 $1 {[%emt 0:00:01]} ({Much less strong is} 27. Rcxc5 Rxg2+ 28. Kf1 Nb3 29. Rd6+ (29. Rc6+ Kf7 $11) 29... Kg5 30. Ne7+ (30. h4+ $2 Kg4 $19) 30... Nxc5 $16) 27... Nb3 {[%emt 0:00:00]} 28. Rc3 {[%emt 0:00:08]} (28. Rd6+ $18 Ke7 29. Rcd1) 28... Rfe2 {[%emt 0:00:15][%cal Re2e1]} 29. Rd1 {[%emt 0:00:23] Prevents Re1+.} Rec2 {[%emt 0:00:11]} (29... Ke6 $16) 30. Rxc2 {[%emt 0:00:09]} Rxc2 {[%emt 0:00:01][%mdl 4096] Endgame [#] KRN-KRN} 31. Nf3 $1 {[%emt 0:00:05]} a5 $2 {[%emt 0:00:12]} (31... c4 32. Rd6+ Kf5) 32. h4 {[%emt 0:00:15][%cal Bh2h4,Bh4h5][%mdl 32]} c4 {[%emt 0:00:03]} 33. Rd6+ {[%emt 0:00:12]} Kf5 $2 {[%emt 0:00:39]} (33... Ke7 34. Rc6 c3) 34. h5 {[%emt 0:00:07] Strongly threatening h6. White is clearly winning.} c3 {[%emt 0:00:14]} 35. Rc6 {[%emt 0:00:03]} Rc1+ {[%emt 0:00:07]} 36. Kh2 {[%emt 0:00:02] Weighted Error Value: White=0.22 (precise) /Black=0.41} ({Weaker is} 36. Kf2 c2 37. h6 Rh1 $18) 1-0

[Event "Super United Croatia GCT Blitz 2022"]
[Site "Zagreb"]
[Date "2022.07.24"]
[Round "11"]
[White "Nepomniachtchi, Ian"]
[Black "Vachier-Lagrave, Maxime"]
[Result "0-1"]
[ECO "D79"]
[WhiteElo "2766"]
[BlackElo "2760"]
[Annotator "TA"]
[PlyCount "72"]
[EventDate "2022.07.20"]
[EventType "tourn"]
[EventCountry "CRO"]
[SourceTitle "playchess.com"]
[Source "ChessBase"]
[SourceQuality "1"]
[TimeControl "300+2"]

{[%evp 21,72,12,37,35,9,0,0,0,0,0,0,-12,0,-23,0,-9,0,0,27,23,20,0,0,0,16,0,0,0,0,0,0,0,13,-104,-97,-93,0,0,0,0,0,0,0,0,0,-6187,-2595,-29986,-29987,-29982,-29968,-29994,-29995]} 1. Nf3 {[%emt 0:00:01]} d5 {[%emt 0:00:01]} 2. g3 {[%emt 0:00:02]} g6 {[%emt 0:00:02]} 3. Bg2 {[%emt 0:00:02]} Bg7 {[%emt 0:00:02]} 4. d4 {[%emt 0:00:01]} Nf6 {[%emt 0:00:01]} 5. O-O {[%emt 0:00:02]} O-O {[%emt 0:00:02]} 6. c4 {[%emt 0:00:01]} c6 {[%emt 0:00:02]} 7. cxd5 {[%emt 0:00:06]} cxd5 {[%emt 0:00:01]} 8. Nc3 {[%emt 0:00:01]} Nc6 {[%emt 0:00:01]} 9. Ne5 {[%emt 0:00:01]} Bf5 {[%emt 0:00:01]} 10. Nxc6 {[%emt 0:00:16]} bxc6 {[%emt 0:00:01]} 11. Bf4 {[%emt 0:00:02]} Nh5 {[%emt 0:00:17]} 12. Be3 {[%emt 0:00:09] D79: Fianchetto Grünfeld: Symmetrical Variation (6 0-0 c6 7 cxd5 cxd5).} c5 $5 {[%emt 0:00:01][%mdl 4] is now debated instead of 12...e5. Exploring less charted territory.} 13. Nxd5 {[%emt 0:00:29] Strongly threatening Bg5.} e6 {[%emt 0:00:43]} 14. Nf4 $1 {[%emt 0:00:17] The position is equal.} cxd4 {[%emt 0:00:09]} 15. Nxh5 {[%emt 0:00:18]} gxh5 {[%emt 0:00:01][%cal Bg6h5,Bh5h4,Bh4h3][%mdl 32] [#]} 16. Bf4 $146 {[%emt 0:00:13]} ({Predecessor:} 16. Bd2 Rc8 17. Bb4 Re8 18. Rc1 Qb6 19. Qa4 d3 20. exd3 Bxd3 21. Rfd1 Bb5 22. Qb3 {1-0 (29) Martirosyan,H (2632)-Mamedyarov,S (2782) Krasnaya Polyana 2021}) 16... e5 {[%emt 0:00:03]} 17. Bd2 {[%emt 0:00:16]} Rb8 {[%emt 0:00:01][%cal Ba8b8,Bb8b6,Bb6a6,Ba6a3][%mdl 32]} 18. b4 {[%emt 0:00:10]} h4 {[%emt 0:00:08]} 19. Rc1 {[%emt 0:00:04]} h3 {[%emt 0:00:20]} 20. Bc6 {[%emt 0:00:08]} Bd7 {[%emt 0:00:29] aiming for ...Bxc6.} 21. Qa4 {[%emt 0:00:04]} Bxc6 {[%emt 0:00:01]} 22. Qxc6 {[%emt 0:00:01]} Rb6 {[%emt 0:00:11]} 23. Qf3 {[%emt 0:00:03]} Qd7 {[%emt 0:00:08]} 24. Rc5 {[%emt 0:00:06]} Qe6 {[%emt 0:00:18]} 25. a3 {[%emt 0:00:18]} e4 {[%emt 0:00:03]} 26. Qh5 {[%emt 0:00:01]} Ra6 {[%emt 0:00:23]} 27. Rg5 {[%emt 0:00:11]} (27. b5 $11 Rd6 28. Bf4) 27... Rxa3 $17 {[%emt 0:00:04]} 28. Bf4 {[%emt 0:00:14] [#]} d3 {[%emt 0:00:13]} (28... Ra2 $1 $17) 29. exd3 $40 {[%emt 0:00:30][%mdl 128] Black needs to defend precisely.} exd3 {[%emt 0:00:01]} 30. Rg4 {[%emt 0:00:02] Hoping for Bh6.} f5 {[%emt 0:00:17]} 31. Rh4 {[%emt 0:00:03]} Qg6 {[%emt 0:00:04] And now ...Rd8 would win. Active counter play!} 32. Qf3 {[%emt 0:00:03]} Rd8 {[%emt 0:00:18][%cal Od3d2] ...d2! is the strong threat.} 33. Bc7 $2 {[%emt 0:00:10][%mdl 8192] [#]} (33. Rd1 $11) 33... d2 $1 $19 {[%emt 0:00:02]} 34. Qxa3 {[%emt 0:00:30]} (34. Qe2 Qc6) 34... d1=Q {[%emt 0:00:02] Black mates.} 35. Bxd8 {[%emt 0:00:03] [#]} Qc6 $1 {[%emt 0:00:24][%csl Gh3][%cal Rc6g2]} 36. f3 {[%emt 0:00:32]} (36. Qa2+ Kh8) 36... Qcc2 {[%emt 0:00:16] Weighted Error Value: White=0.51/Black=0.10 (very precise)} 0-1